[Event "Titled Tuesday Blitz May 30 Late 2023"]
[White "Vovk, Orest"]
[Black "Bashirli, Nail"]
[WhiteFideId "14113490"]
[BlackFideId "13406809"]
[WhiteElo "2215"]
[BlackElo "2311"]
[Result "1/2-1/2"]
[Round "03"]
[TimeControl "180+2"]
[Date "2023.05.31"]
[WhiteClock "0:00:07"]
[BlackClock "0:00:48"]

1. g4 {[%clk 0:02:57]}  Nf6 {[%clk 0:03:00]} 2. g5 {[%clk 0:02:56]}  Ng8 {[%clk 0:03:00]} 3. Bg2 {[%clk 0:02:53]}  a5 {[%clk 0:03:00]} 4. h4 {[%clk 0:02:52]}  a4 {[%clk 0:02:58]} 5. a3 {[%clk 0:02:52]}  g6 {[%clk 0:02:57]} 6. h5 {[%clk 0:02:52]}  Bg7 {[%clk 0:02:53]} 7. h6 {[%clk 0:02:46]}  Bf8 {[%clk 0:02:52]} 8. d4 {[%clk 0:02:46]}  d5 {[%clk 0:02:51]} 9. Nc3 {[%clk 0:02:46]}  c6 {[%clk 0:02:51]} 10. e4 {[%clk 0:02:45]}  dxe4 {[%clk 0:02:52]} 11. Nxe4 {[%clk 0:02:45]}  Bf5 {[%clk 0:02:52]} 12. Ne2 {[%clk 0:02:43]}  Bxe4 {[%clk 0:02:48]} 13. Bxe4 {[%clk 0:02:43]}  e6 {[%clk 0:02:49]} 14. Bf4 {[%clk 0:02:40]}  Bd6 {[%clk 0:02:49]} 15. Qd2 {[%clk 0:02:34]}  Ne7 {[%clk 0:02:43]} 16. O-O-O {[%clk 0:02:27]}  Na6 {[%clk 0:02:39]} 17. Be5 {[%clk 0:02:27]}  Bxe5 {[%clk 0:02:37]} 18. dxe5 {[%clk 0:02:28]}  Qxd2+ {[%clk 0:02:38]} 19. Rxd2 {[%clk 0:02:29]}  Nc5 {[%clk 0:02:29]} 20. Nc3 {[%clk 0:02:23]}  Nd5 {[%clk 0:02:27]} 21. Bxd5 {[%clk 0:02:22]}  cxd5 {[%clk 0:02:27]} 22. Nb5 {[%clk 0:02:21]}  Ke7 {[%clk 0:02:21]} 23. Nd6 {[%clk 0:02:17]}  Ra6 {[%clk 0:02:13]} 24. Rh4 {[%clk 0:02:12]}  Nd7 {[%clk 0:02:05]} 25. f4 {[%clk 0:02:03]}  Rxd6 {[%clk 0:02:05]} 26. exd6+ {[%clk 0:02:02]}  Kxd6 {[%clk 0:02:06]} 27. c4 {[%clk 0:01:51]}  Rc8 {[%clk 0:02:05]} 28. f5 {[%clk 0:01:31]}  gxf5 {[%clk 0:02:01]} 29. Kd1 {[%clk 0:01:27]}  Nb6 {[%clk 0:01:53]} 30. cxd5 {[%clk 0:01:25]}  Nxd5 {[%clk 0:01:54]} 31. Rxa4 {[%clk 0:01:22]}  Rg8 {[%clk 0:01:41]} 32. Ra7 {[%clk 0:00:54]}  Kc6 {[%clk 0:01:41]} 33. b4 {[%clk 0:00:39]}  Rxg5 {[%clk 0:01:29]} 34. Ra8 {[%clk 0:00:32]}  Rh5 {[%clk 0:01:27]} 35. Rc8+ {[%clk 0:00:17]}  Kd7 {[%clk 0:01:26]} 36. Rf8 {[%clk 0:00:13]}  Ke7 {[%clk 0:01:19]} 37. Rb8 {[%clk 0:00:13]}  b5 {[%clk 0:01:19]} 38. Rxd5 {[%clk 0:00:11]}  exd5 {[%clk 0:01:20]} 39. Rxb5 {[%clk 0:00:11]}  Kd6 {[%clk 0:01:17]} 40. a4 {[%clk 0:00:11]}  f4 {[%clk 0:01:15]} 41. Ke2 {[%clk 0:00:10]}  Rh3 {[%clk 0:01:14]} 42. a5 {[%clk 0:00:10]}  Ra3 {[%clk 0:01:14]} 43. Rb6+ {[%clk 0:00:10]}  Ke5 {[%clk 0:01:15]} 44. Rb7 {[%clk 0:00:09]}  Ra2+ {[%clk 0:01:12]} 45. Kf3 {[%clk 0:00:09]}  Ra3+ {[%clk 0:01:13]} 46. Ke2 {[%clk 0:00:09]}  d4 {[%clk 0:01:13]} 47. Rxf7 {[%clk 0:00:07]}  Ra2+ {[%clk 0:01:12]} 48. Kd3 {[%clk 0:00:07]}  Ra3+ {[%clk 0:01:12]} 49. Kd2 {[%clk 0:00:07]}  f3 {[%clk 0:01:12]} 50. Rxh7 {[%clk 0:00:06]}  Ra2+ {[%clk 0:01:12]} 51. Kd3 {[%clk 0:00:06]}  Ra3+ {[%clk 0:01:13]} 52. Kd2 {[%clk 0:00:06]}  Ke6 {[%clk 0:01:11]} 53. Rh8 {[%clk 0:00:05]}  Kf7 {[%clk 0:01:06]} 54. h7 {[%clk 0:00:04]}  Ra2+ {[%clk 0:01:04]} 55. Kd3 {[%clk 0:00:04]}  Kg7 {[%clk 0:01:02]} 56. Rf8 {[%clk 0:00:03]}  Ra3+ {[%clk 0:00:56]} 57. Kxd4 {[%clk 0:00:03]}  Kxh7 {[%clk 0:00:57]} 58. Ke4 {[%clk 0:00:03]}  Rb3 {[%clk 0:00:53]} 59. Rxf3 {[%clk 0:00:03]}  Rxb4+ {[%clk 0:00:53]} 60. Ke3 {[%clk 0:00:04]}  Rb5 {[%clk 0:00:42]} 61. a6 {[%clk 0:00:03]}  Ra5 {[%clk 0:00:39]} 62. Rf6 {[%clk 0:00:03]}  Kg7 {[%clk 0:00:39]} 63. Rb6 {[%clk 0:00:03]}  Kf7 {[%clk 0:00:40]} 64. Kd4 {[%clk 0:00:03]}  Ke7 {[%clk 0:00:41]} 65. Kc4 {[%clk 0:00:04]}  Kd7 {[%clk 0:00:41]} 66. Kb4 {[%clk 0:00:04]}  Ra1 {[%clk 0:00:42]} 67. Rh6 {[%clk 0:00:04]}  Kc7 {[%clk 0:00:42]} 68. Kb5 {[%clk 0:00:04]}  Rb1+ {[%clk 0:00:41]} 69. Ka5 {[%clk 0:00:04]}  Ra1+ {[%clk 0:00:42]} 70. Kb5 {[%clk 0:00:05]}  Rb1+ {[%clk 0:00:43]} 71. Kc5 {[%clk 0:00:05]}  Kb8 {[%clk 0:00:41]} 72. Kc4 {[%clk 0:00:04]}  Ka7 {[%clk 0:00:42]} 73. Kc3 {[%clk 0:00:05]}  Rc1+ {[%clk 0:00:42]} 74. Kb2 {[%clk 0:00:05]}  Rc7 {[%clk 0:00:43]} 75. Kb3 {[%clk 0:00:05]}  Re7 {[%clk 0:00:43]} 76. Kb4 {[%clk 0:00:05]}  Rd7 {[%clk 0:00:44]} 77. Kb5 {[%clk 0:00:06]}  Rc7 {[%clk 0:00:45]} 78. Rd6 {[%clk 0:00:05]}  Rf7 {[%clk 0:00:45]} 79. Kc5 {[%clk 0:00:06]}  Rh7 {[%clk 0:00:45]} 80. Kb5 {[%clk 0:00:06]}  Rc7 {[%clk 0:00:46]} 81. Ka5 {[%clk 0:00:06]}  Rh7 {[%clk 0:00:46]} 82. Kb5 {[%clk 0:00:06]}  Rh5+ {[%clk 0:00:47]} 83. Kb4 {[%clk 0:00:07]}  Rh7 {[%clk 0:00:48]} 84. Kb5 {[%clk 0:00:07]} 1/2-1/2


[Site "https://www.chess.com"]

[Event "Titled Tuesday Blitz May 30 Late 2023"]
[White "Vlassov, Nikolai"]
[Black "Ponce Cano, Adrian"]
[WhiteFideId "4103360"]
[BlackFideId "22296913"]
[WhiteElo "2324"]
[BlackElo "2211"]
[Result "1/2-1/2"]
[Round "03"]
[TimeControl "180+2"]
[Date "2023.05.31"]
[WhiteClock "0:00:30"]
[BlackClock "0:00:27"]

1. g4 {[%clk 0:03:00]}  d5 {[%clk 0:02:58]} 2. Bg2 {[%clk 0:03:00]}  c6 {[%clk 0:02:59]} 3. h3 {[%clk 0:03:00]}  e5 {[%clk 0:02:56]} 4. d4 {[%clk 0:03:01]}  e4 {[%clk 0:02:53]} 5. c4 {[%clk 0:03:00]}  h6 {[%clk 0:02:51]} 6. Nc3 {[%clk 0:03:00]}  Nf6 {[%clk 0:02:48]} 7. g5 {[%clk 0:02:56]}  hxg5 {[%clk 0:02:48]} 8. Bxg5 {[%clk 0:02:56]}  Be7 {[%clk 0:02:49]} 9. Qb3 {[%clk 0:02:54]}  dxc4 {[%clk 0:02:45]} 10. Qxc4 {[%clk 0:02:53]}  Be6 {[%clk 0:02:46]} 11. Qa4 {[%clk 0:02:53]}  b5 {[%clk 0:02:42]} 12. Qd1 {[%clk 0:02:52]}  Bd5 {[%clk 0:02:40]} 13. e3 {[%clk 0:02:34]}  Nbd7 {[%clk 0:02:26]} 14. Nge2 {[%clk 0:02:28]}  Qa5 {[%clk 0:02:25]} 15. Ng3 {[%clk 0:02:21]}  b4 {[%clk 0:02:16]} 16. Nce2 {[%clk 0:02:07]}  Bc4 {[%clk 0:02:07]} 17. h4 {[%clk 0:01:59]}  b3+ {[%clk 0:02:00]} 18. Nc3 {[%clk 0:01:57]}  bxa2 {[%clk 0:02:00]} 19. Bxf6 {[%clk 0:01:41]}  Nxf6 {[%clk 0:01:59]} 20. Nxe4 {[%clk 0:01:40]}  Nxe4 {[%clk 0:01:56]} 21. Bxe4 {[%clk 0:01:39]}  Rb8 {[%clk 0:01:52]} 22. Bxc6+ {[%clk 0:01:20]}  Kf8 {[%clk 0:01:52]} 23. Qd2 {[%clk 0:01:20]}  Qb6 {[%clk 0:01:29]} 24. Bd5 {[%clk 0:01:15]}  Bxd5 {[%clk 0:01:17]} 25. Nxd5 {[%clk 0:01:15]}  Qb7 {[%clk 0:01:18]} 26. e4 {[%clk 0:01:12]}  Qxb2 {[%clk 0:01:15]} 27. Qxb2 {[%clk 0:01:04]}  Rxb2 {[%clk 0:01:15]} 28. O-O {[%clk 0:00:51]}  Bxh4 {[%clk 0:01:09]} 29. Nc3 {[%clk 0:00:49]}  Rh6 {[%clk 0:00:59]} 30. Rxa2 {[%clk 0:00:45]}  Rg6+ {[%clk 0:00:59]} 31. Kh2 {[%clk 0:00:43]}  Rb3 {[%clk 0:00:57]} 32. Nd5 {[%clk 0:00:35]}  Rh6 {[%clk 0:00:50]} 33. Kg2 {[%clk 0:00:34]}  Rg6+ {[%clk 0:00:50]} 34. Kh2 {[%clk 0:00:34]}  Rh6 {[%clk 0:00:41]} 35. Rxa7 {[%clk 0:00:33]}  Bd8+ {[%clk 0:00:35]} 36. Kg2 {[%clk 0:00:30]}  Rg6+ {[%clk 0:00:35]} 37. Kh2 {[%clk 0:00:30]}  Rh6+ {[%clk 0:00:35]} 38. Kg2 {[%clk 0:00:30]}  Rg6+ {[%clk 0:00:32]} 39. Kh2 {[%clk 0:00:30]}  Rh6+ {[%clk 0:00:27]} 1/2-1/2


[Site "https://www.chess.com"]

[Event "Titled Tuesday Blitz May 30 Late 2023"]
[White "Estrada Nieto, Julian"]
[Black "Rostomyan, Mikayel"]
[WhiteFideId "5101018"]
[BlackFideId "13313754"]
[WhiteElo "2161"]
[BlackElo "2061"]
[Result "1-0"]
[Round "03"]
[TimeControl "180+2"]
[Date "2023.05.31"]
[WhiteClock "0:00:25"]
[BlackClock "0:00:02"]

1. e4 {[%clk 0:03:00]}  c5 {[%clk 0:02:59]} 2. Nf3 {[%clk 0:03:01]}  Nc6 {[%clk 0:02:59]} 3. Bb5 {[%clk 0:03:01]}  g6 {[%clk 0:02:58]} 4. Bxc6 {[%clk 0:03:01]}  bxc6 {[%clk 0:02:59]} 5. O-O {[%clk 0:03:00]}  Bg7 {[%clk 0:03:00]} 6. Re1 {[%clk 0:03:01]}  Nf6 {[%clk 0:02:59]} 7. c3 {[%clk 0:02:57]}  O-O {[%clk 0:02:59]} 8. e5 {[%clk 0:02:54]}  Nd5 {[%clk 0:02:58]} 9. d4 {[%clk 0:02:55]}  cxd4 {[%clk 0:02:58]} 10. cxd4 {[%clk 0:02:56]}  d6 {[%clk 0:02:58]} 11. h3 {[%clk 0:02:55]}  c5 {[%clk 0:02:55]} 12. Nc3 {[%clk 0:02:50]}  Nxc3 {[%clk 0:02:54]} 13. bxc3 {[%clk 0:02:49]}  Bb7 {[%clk 0:02:53]} 14. Rb1 {[%clk 0:02:48]}  Rb8 {[%clk 0:02:44]} 15. Bg5 {[%clk 0:02:30]}  Bxf3 {[%clk 0:02:24]} 16. Qxf3 {[%clk 0:02:19]}  Rxb1 {[%clk 0:02:17]} 17. Rxb1 {[%clk 0:02:19]}  cxd4 {[%clk 0:02:15]} 18. cxd4 {[%clk 0:02:14]}  dxe5 {[%clk 0:02:14]} 19. dxe5 {[%clk 0:02:12]}  Bxe5 {[%clk 0:02:14]} 20. Qb7 {[%clk 0:02:00]}  Qd3 {[%clk 0:01:58]} 21. Re1 {[%clk 0:01:26]}  f6 {[%clk 0:01:29]} 22. Qxe7 {[%clk 0:01:13]}  Rf7 {[%clk 0:01:24]} 23. Qe8+ {[%clk 0:01:10]}  Rf8 {[%clk 0:01:16]} 24. Qe6+ {[%clk 0:01:09]}  Kg7 {[%clk 0:01:16]} 25. Be3 {[%clk 0:00:57]}  Rf7 {[%clk 0:01:06]} 26. Bh6+ {[%clk 0:00:55]}  Kxh6 {[%clk 0:01:02]} 27. Qxf7 {[%clk 0:00:55]}  Qd6 {[%clk 0:00:57]} 28. Qc4 {[%clk 0:00:52]}  g5 {[%clk 0:00:56]} 29. Qg4 {[%clk 0:00:48]}  Qd2 {[%clk 0:00:51]} 30. Rd1 {[%clk 0:00:42]}  Qxa2 {[%clk 0:00:49]} 31. h4 {[%clk 0:00:39]}  Qg8 {[%clk 0:00:44]} 32. Rd7 {[%clk 0:00:34]}  Bf4 {[%clk 0:00:17]} 33. g3 {[%clk 0:00:32]}  Bc1 {[%clk 0:00:09]} 34. Rxa7 {[%clk 0:00:27]}  Qb8 {[%clk 0:00:02]} 35. hxg5+ {[%clk 0:00:25]} 1-0


[Site "https://www.chess.com"]

[Event "Titled Tuesday Blitz May 30 Late 2023"]
[White "Castaneda, Jhon David"]
[Black "Gil Alba, Hector Luis"]
[WhiteFideId "4405048"]
[BlackFideId "3504670"]
[WhiteElo "2086"]
[BlackElo "2331"]
[Result "0-1"]
[Round "03"]
[TimeControl "180+2"]
[Date "2023.05.31"]
[WhiteClock "0:00:46"]
[BlackClock "0:00:22"]

1. d4 {[%clk 0:03:00]}  Nf6 {[%clk 0:02:59]} 2. Nf3 {[%clk 0:03:00]}  e6 {[%clk 0:02:59]} 3. c4 {[%clk 0:03:00]}  d5 {[%clk 0:02:57]} 4. Nc3 {[%clk 0:03:00]}  Bb4 {[%clk 0:02:52]} 5. cxd5 {[%clk 0:02:59]}  exd5 {[%clk 0:02:52]} 6. Qa4+ {[%clk 0:02:59]}  Nc6 {[%clk 0:02:52]} 7. Bg5 {[%clk 0:03:00]}  h6 {[%clk 0:02:46]} 8. Bxf6 {[%clk 0:03:00]}  Qxf6 {[%clk 0:02:46]} 9. e3 {[%clk 0:03:01]}  Bxc3+ {[%clk 0:02:26]} 10. bxc3 {[%clk 0:03:01]}  O-O {[%clk 0:02:26]} 11. Be2 {[%clk 0:02:57]}  Ne7 {[%clk 0:02:26]} 12. Ne5 {[%clk 0:02:56]}  Nf5 {[%clk 0:02:16]} 13. O-O {[%clk 0:02:52]}  c6 {[%clk 0:02:14]} 14. c4 {[%clk 0:02:51]}  dxc4 {[%clk 0:02:13]} 15. Qxc4 {[%clk 0:02:49]}  Be6 {[%clk 0:02:11]} 16. Qb4 {[%clk 0:02:49]}  Rab8 {[%clk 0:02:09]} 17. a4 {[%clk 0:02:45]}  Rfc8 {[%clk 0:02:09]} 18. Rfc1 {[%clk 0:02:44]}  Bd5 {[%clk 0:02:03]} 19. g3 {[%clk 0:02:31]}  b6 {[%clk 0:01:39]} 20. Nd7 {[%clk 0:02:25]}  Qe6 {[%clk 0:01:38]} 21. Ne5 {[%clk 0:01:59]}  c5 {[%clk 0:01:36]} 22. Qd2 {[%clk 0:01:53]}  cxd4 {[%clk 0:01:30]} 23. exd4 {[%clk 0:01:54]}  f6 {[%clk 0:01:29]} 24. Nf3 {[%clk 0:01:43]}  Rxc1+ {[%clk 0:01:25]} 25. Rxc1 {[%clk 0:01:43]}  Re8 {[%clk 0:01:24]} 26. Rc2 {[%clk 0:01:32]}  Qxe2 {[%clk 0:01:17]} 27. Qxe2 {[%clk 0:01:26]}  Rxe2 {[%clk 0:01:17]} 28. Rxe2 {[%clk 0:01:27]}  Bxf3 {[%clk 0:01:17]} 29. Rd2 {[%clk 0:01:27]}  Bd5 {[%clk 0:01:14]} 30. f3 {[%clk 0:01:27]}  Nd6 {[%clk 0:01:11]} 31. Kf2 {[%clk 0:01:26]}  Kf7 {[%clk 0:01:08]} 32. Rc2 {[%clk 0:01:24]}  Nc4 {[%clk 0:01:08]} 33. Re2 {[%clk 0:01:22]}  a6 {[%clk 0:01:06]} 34. g4 {[%clk 0:01:19]}  b5 {[%clk 0:01:05]} 35. axb5 {[%clk 0:01:19]}  axb5 {[%clk 0:01:06]} 36. Ra2 {[%clk 0:01:19]}  b4 {[%clk 0:01:04]} 37. Ra4 {[%clk 0:01:19]}  b3 {[%clk 0:01:03]} 38. Rb4 {[%clk 0:01:18]}  b2 {[%clk 0:01:02]} 39. Ke2 {[%clk 0:01:15]}  f5 {[%clk 0:00:48]} 40. Kd3 {[%clk 0:01:08]}  fxg4 {[%clk 0:00:41]} 41. fxg4 {[%clk 0:01:08]}  b1=Q+ {[%clk 0:00:36]} 42. Rxb1 {[%clk 0:01:05]}  Be4+ {[%clk 0:00:36]} 43. Kxe4 {[%clk 0:01:03]}  Nd2+ {[%clk 0:00:36]} 44. Ke5 {[%clk 0:01:04]}  Nxb1 {[%clk 0:00:37]} 45. d5 {[%clk 0:01:05]}  Na3 {[%clk 0:00:36]} 46. Kd6 {[%clk 0:01:03]}  Nc4+ {[%clk 0:00:36]} 47. Kc5 {[%clk 0:01:03]}  Ne5 {[%clk 0:00:35]} 48. h3 {[%clk 0:01:02]}  Ke7 {[%clk 0:00:29]} 49. Kd4 {[%clk 0:01:01]}  Kd6 {[%clk 0:00:29]} 50. Ke4 {[%clk 0:01:02]}  g6 {[%clk 0:00:29]} 51. Kd4 {[%clk 0:00:59]}  Nf3+ {[%clk 0:00:29]} 52. Ke3 {[%clk 0:00:58]}  Ng5 {[%clk 0:00:26]} 53. h4 {[%clk 0:00:58]}  Nf7 {[%clk 0:00:26]} 54. Ke4 {[%clk 0:00:56]}  Ne5 {[%clk 0:00:25]} 55. h5 {[%clk 0:00:52]}  g5 {[%clk 0:00:20]} 56. Kf5 {[%clk 0:00:49]}  Nxg4 {[%clk 0:00:21]} 57. Kxg4 {[%clk 0:00:45]}  Kxd5 {[%clk 0:00:21]} 58. Kf3 {[%clk 0:00:45]}  Ke5 {[%clk 0:00:21]} 59. Ke3 {[%clk 0:00:46]}  Kf5 {[%clk 0:00:21]} 60. Kf3 {[%clk 0:00:46]}  g4+ {[%clk 0:00:21]} 61. Kg3 {[%clk 0:00:46]}  Kg5 {[%clk 0:00:22]} 0-1


[Site "https://www.chess.com"]

[Event "Titled Tuesday Blitz May 30 Late 2023"]
[White "Sztokbant, Bernardo Vainzoff"]
[Black "Bjelobrk, Igor"]
[WhiteFideId "2115956"]
[BlackFideId "4300726"]
[WhiteElo "2222"]
[BlackElo "2319"]
[Result "0-1"]
[Round "03"]
[TimeControl "180+2"]
[Date "2023.05.31"]
[WhiteClock "0:01:20"]
[BlackClock "0:01:19"]

1. e4 {[%clk 0:02:59]}  e6 {[%clk 0:02:53]} 2. d4 {[%clk 0:02:57]}  d5 {[%clk 0:02:53]} 3. Nd2 {[%clk 0:02:57]}  c5 {[%clk 0:02:52]} 4. exd5 {[%clk 0:02:57]}  Qxd5 {[%clk 0:02:52]} 5. Ngf3 {[%clk 0:02:58]}  cxd4 {[%clk 0:02:51]} 6. Bc4 {[%clk 0:02:58]}  Qd7 {[%clk 0:02:51]} 7. O-O {[%clk 0:02:59]}  Nc6 {[%clk 0:02:50]} 8. Nb3 {[%clk 0:02:59]}  a6 {[%clk 0:02:50]} 9. Nbxd4 {[%clk 0:02:59]}  Nxd4 {[%clk 0:02:50]} 10. Nxd4 {[%clk 0:03:00]}  Nf6 {[%clk 0:02:49]} 11. c3 {[%clk 0:03:00]}  b5 {[%clk 0:02:38]} 12. Be2 {[%clk 0:02:51]}  Bb7 {[%clk 0:02:35]} 13. Bf3 {[%clk 0:02:51]}  Nd5 {[%clk 0:02:32]} 14. a4 {[%clk 0:02:47]}  Be7 {[%clk 0:02:27]} 15. axb5 {[%clk 0:02:43]}  axb5 {[%clk 0:02:27]} 16. Rxa8+ {[%clk 0:02:44]}  Bxa8 {[%clk 0:02:27]} 17. Qb3 {[%clk 0:02:43]}  b4 {[%clk 0:02:25]} 18. c4 {[%clk 0:02:42]}  Nc7 {[%clk 0:02:22]} 19. Bxa8 {[%clk 0:02:35]}  Nxa8 {[%clk 0:02:22]} 20. Be3 {[%clk 0:02:32]}  O-O {[%clk 0:02:17]} 21. Ra1 {[%clk 0:02:26]}  Nc7 {[%clk 0:02:13]} 22. Ra7 {[%clk 0:02:09]}  Bc5 {[%clk 0:02:02]} 23. Qa4 {[%clk 0:01:55]}  Qxa4 {[%clk 0:01:55]} 24. Rxa4 {[%clk 0:01:56]}  Rd8 {[%clk 0:01:51]} 25. Kf1 {[%clk 0:01:53]}  Bxd4 {[%clk 0:01:50]} 26. Bxd4 {[%clk 0:01:54]}  Rxd4 {[%clk 0:01:50]} 27. Rxb4 {[%clk 0:01:55]}  Kf8 {[%clk 0:01:46]} 28. Ke2 {[%clk 0:01:54]}  Ke7 {[%clk 0:01:45]} 29. Ke3 {[%clk 0:01:50]}  e5 {[%clk 0:01:45]} 30. Ra4 {[%clk 0:01:44]}  f5 {[%clk 0:01:44]} 31. b3 {[%clk 0:01:38]}  f4+ {[%clk 0:01:43]} 32. Ke2 {[%clk 0:01:37]}  e4 {[%clk 0:01:40]} 33. Ra7 {[%clk 0:01:36]}  Kd6 {[%clk 0:01:40]} 34. Ra5 {[%clk 0:01:34]}  h6 {[%clk 0:01:31]} 35. h4 {[%clk 0:01:33]}  Rd3 {[%clk 0:01:26]} 36. Ra3 {[%clk 0:01:28]}  Ne6 {[%clk 0:01:26]} 37. Ra6+ {[%clk 0:01:26]}  Ke5 {[%clk 0:01:24]} 38. b4 {[%clk 0:01:21]}  f3+ {[%clk 0:01:21]} 39. gxf3 {[%clk 0:01:20]}  Nf4+ {[%clk 0:01:19]} 40. Ke1 {[%clk 0:01:20]}  exf3 {[%clk 0:01:19]} 0-1


[Site "https://www.chess.com"]

[Event "Titled Tuesday Blitz May 30 Late 2023"]
[White "Bernabeu Lopez, Carlos Javier"]
[Black "Jimenez Almeida, Luis David"]
[WhiteFideId "2235366"]
[BlackFideId "22242244"]
[WhiteElo "2344"]
[BlackElo "2245"]
[Result "1-0"]
[Round "03"]
[TimeControl "180+2"]
[Date "2023.05.31"]
[WhiteClock "0:01:27"]
[BlackClock "0:01:06"]

1. c4 {[%clk 0:03:00]}  g6 {[%clk 0:02:39]} 2. Nc3 {[%clk 0:02:58]}  Bg7 {[%clk 0:02:40]} 3. g3 {[%clk 0:02:58]}  f5 {[%clk 0:02:40]} 4. Bg2 {[%clk 0:02:59]}  Nf6 {[%clk 0:02:41]} 5. Nf3 {[%clk 0:02:59]}  d6 {[%clk 0:02:41]} 6. d4 {[%clk 0:03:00]}  O-O {[%clk 0:02:42]} 7. O-O {[%clk 0:03:01]}  Nc6 {[%clk 0:02:42]} 8. d5 {[%clk 0:03:01]}  Ne5 {[%clk 0:02:42]} 9. Nxe5 {[%clk 0:03:02]}  dxe5 {[%clk 0:02:43]} 10. e4 {[%clk 0:03:03]}  f4 {[%clk 0:02:43]} 11. gxf4 {[%clk 0:03:04]}  exf4 {[%clk 0:02:44]} 12. e5 {[%clk 0:03:05]}  Ng4 {[%clk 0:02:44]} 13. e6 {[%clk 0:03:04]}  Ne5 {[%clk 0:02:44]} 14. b3 {[%clk 0:02:25]}  g5 {[%clk 0:02:28]} 15. Be4 {[%clk 0:02:22]}  Qe8 {[%clk 0:02:24]} 16. Kh1 {[%clk 0:02:21]}  Nxc4 {[%clk 0:02:15]} 17. bxc4 {[%clk 0:02:19]}  Bxc3 {[%clk 0:02:15]} 18. Rb1 {[%clk 0:02:15]}  h6 {[%clk 0:02:01]} 19. Qc2 {[%clk 0:02:10]}  Bg7 {[%clk 0:01:56]} 20. Bg6 {[%clk 0:02:09]}  Qd8 {[%clk 0:01:55]} 21. Rg1 {[%clk 0:02:07]}  Qd6 {[%clk 0:01:48]} 22. h4 {[%clk 0:02:03]}  Bf6 {[%clk 0:01:20]} 23. hxg5 {[%clk 0:01:52]}  hxg5 {[%clk 0:01:19]} 24. f3 {[%clk 0:01:38]}  c6 {[%clk 0:01:06]} 25. Qh2 {[%clk 0:01:27]} 1-0


[Site "https://www.chess.com"]

[Event "Titled Tuesday Blitz May 30 Late 2023"]
[White "Filipascu"]
[Black "Goncalves, Davi Sulzbacher"]
[BlackFideId "2154510"]
[WhiteElo "2608"]
[BlackElo "2182"]
[Result "0-1"]
[Round "03"]
[TimeControl "180+2"]
[Date "2023.05.31"]
[WhiteClock "0:00:50"]
[BlackClock "0:00:34"]

1. c4 {[%clk 0:03:00]}  c5 {[%clk 0:02:59]} 2. Nc3 {[%clk 0:03:00]}  Nf6 {[%clk 0:02:59]} 3. g3 {[%clk 0:03:00]}  g6 {[%clk 0:03:00]} 4. Bg2 {[%clk 0:03:00]}  Bg7 {[%clk 0:03:00]} 5. Nf3 {[%clk 0:03:00]}  O-O {[%clk 0:03:01]} 6. O-O {[%clk 0:03:01]}  Nc6 {[%clk 0:03:01]} 7. a3 {[%clk 0:02:53]}  d5 {[%clk 0:02:59]} 8. cxd5 {[%clk 0:02:52]}  Nxd5 {[%clk 0:03:00]} 9. Qb3 {[%clk 0:02:41]}  Nb6 {[%clk 0:02:42]} 10. d3 {[%clk 0:02:39]}  Be6 {[%clk 0:02:37]} 11. Qd1 {[%clk 0:02:37]}  Qd7 {[%clk 0:02:23]} 12. Ng5 {[%clk 0:02:36]}  Bf5 {[%clk 0:02:19]} 13. Be3 {[%clk 0:02:33]}  Nd4 {[%clk 0:02:12]} 14. Rc1 {[%clk 0:02:19]}  Rac8 {[%clk 0:01:59]} 15. Nge4 {[%clk 0:02:14]}  Bh3 {[%clk 0:01:52]} 16. Bxh3 {[%clk 0:02:03]}  Qxh3 {[%clk 0:01:53]} 17. b4 {[%clk 0:01:41]}  cxb4 {[%clk 0:01:46]} 18. axb4 {[%clk 0:01:42]}  h6 {[%clk 0:01:21]} 19. Nc5 {[%clk 0:01:40]}  Nf5 {[%clk 0:01:12]} 20. Bd2 {[%clk 0:01:38]}  a5 {[%clk 0:01:03]} 21. bxa5 {[%clk 0:01:30]}  Rxc5 {[%clk 0:01:03]} 22. axb6 {[%clk 0:01:28]}  Nd4 {[%clk 0:00:49]} 23. f3 {[%clk 0:00:53]}  Rh5 {[%clk 0:00:36]} 24. Rf2 {[%clk 0:00:53]}  Nxf3+ {[%clk 0:00:34]} 25. exf3 {[%clk 0:00:50]}  Bd4 {[%clk 0:00:34]} 26. Qf1 {[%clk 0:00:50]}  Qxh2# {[%clk 0:00:34]} 0-1


[Site "https://www.chess.com"]

[Event "Titled Tuesday Blitz May 30 Late 2023"]
[White "Pasti, Aron"]
[Black "TimGrutter03"]
[WhiteFideId "785857"]
[WhiteElo "2173"]
[BlackElo "2608"]
[Result "1-0"]
[Round "03"]
[TimeControl "180+2"]
[Date "2023.05.31"]
[WhiteClock "0:01:42"]
[BlackClock "0:00:50"]

1. e4 {[%clk 0:03:00]}  e5 {[%clk 0:03:00]} 2. Nf3 {[%clk 0:03:01]}  Nc6 {[%clk 0:03:00]} 3. Bb5 {[%clk 0:03:00]}  a6 {[%clk 0:02:57]} 4. Ba4 {[%clk 0:03:00]}  Nf6 {[%clk 0:02:57]} 5. O-O {[%clk 0:03:00]}  Nxe4 {[%clk 0:02:53]} 6. d4 {[%clk 0:02:59]}  b5 {[%clk 0:02:50]} 7. Bb3 {[%clk 0:02:59]}  d5 {[%clk 0:02:50]} 8. dxe5 {[%clk 0:03:00]}  Bc5 {[%clk 0:02:50]} 9. Nbd2 {[%clk 0:03:00]}  Nxd2 {[%clk 0:02:47]} 10. Bxd2 {[%clk 0:02:57]}  Be6 {[%clk 0:02:47]} 11. c3 {[%clk 0:02:47]}  O-O {[%clk 0:02:44]} 12. Bg5 {[%clk 0:02:44]}  Be7 {[%clk 0:02:42]} 13. Bxe7 {[%clk 0:02:37]}  Qxe7 {[%clk 0:02:41]} 14. Re1 {[%clk 0:02:36]}  Na5 {[%clk 0:02:38]} 15. Bc2 {[%clk 0:02:36]}  c5 {[%clk 0:02:37]} 16. Qd3 {[%clk 0:02:35]}  g6 {[%clk 0:02:34]} 17. Qe3 {[%clk 0:02:35]}  Rfd8 {[%clk 0:02:22]} 18. Qh6 {[%clk 0:02:35]}  Qf8 {[%clk 0:02:21]} 19. Qh4 {[%clk 0:02:34]}  d4 {[%clk 0:02:08]} 20. cxd4 {[%clk 0:02:26]}  cxd4 {[%clk 0:02:05]} 21. Nxd4 {[%clk 0:02:07]}  Rac8 {[%clk 0:01:47]} 22. Rad1 {[%clk 0:01:51]}  Rxd4 {[%clk 0:01:44]} 23. Rxd4 {[%clk 0:01:51]}  Nc6 {[%clk 0:01:25]} 24. Rd2 {[%clk 0:01:49]}  Nb4 {[%clk 0:01:22]} 25. Red1 {[%clk 0:01:42]}  Nd5 {[%clk 0:01:15]} 26. Be4 {[%clk 0:01:41]}  Qc5 {[%clk 0:01:04]} 27. Bxd5 {[%clk 0:01:41]}  Bxd5 {[%clk 0:01:04]} 28. h3 {[%clk 0:01:42]}  Be6 {[%clk 0:00:50]} 29. Qf6 {[%clk 0:01:42]} 1-0


[Site "https://www.chess.com"]